Cogmind - Beta 15 *** ADVENTURER MODE // 2025.07.19 @ 12:03:22 Player: Ninjafish69 Result: Destroyed by Y-45 Defender with Beam Rifle Performance ------------- Evolutions (2) 1000 Regions Visited (3) 600 Robots Destroyed (49) 245 Value Destroyed (1240) 1240 Prototype IDs (0) 0 Alien Tech Used (0) 0 Bonus (0) 0 TOTAL SCORE: 3085 Bonus ------- None Cogmind --------- Core Integrity 0/550 Matter 300/300 Energy 90/100 System Corruption 0% Temperature Cool (18) Movement Walking (120) Location -8/Materials Parts ------- > --- POWER (2) -------- (None) > --- PROPULSION (3) --- Aluminum Leg Aluminum Leg > --- UTILITY (4) ------ Hacking Suite > --- WEAPON (2) ------- (None) > --- INVENTORY (5) ---- Hacking Suite Peak State ------------ > --- POWER ------------ Light Ion Engine Light Nuclear Core > --- PROPULSION ------- Light Treads Light Treads Light Treads > --- UTILITY ---------- Small Storage Unit Reflective Plating Reflective Plating Hacking Suite > --- WEAPON ----------- Beam Rifle Beam Cannon > --- INVENTORY -------- Ion Engine Light Ion Engine Aluminum Leg Aluminum Leg Hacking Suite [Rating: 20] Favorites ----------- Power Light Ion Engine Engine Light Ion Engine Power Core Light Nuclear Core Propulsion Light Treads Treads Light Treads Leg Aluminum Leg Utility Small Storage Unit Storage Small Storage Unit Hackware Hacking Suite Protection Reflective Plating Weapon EM Pulse Gun Energy Gun EM Pulse Gun Energy Cannon Beam Cannon Ballistic Gun Light Assault Rifle Build | -11 -10 -9 -8 ------- Run | Yrd Mat Mat Mat Slots Evolved 4 | . . 2 2 Power 1 | . . 1 . Propulsion 1 | . . . 1 Utility 2 | . . 1 1 Weapon . | . . . . Parts Attached 35 | 6 6 12 11 Power 7 | 1 1 3 2 Engine 6 | 1 1 2 2 Core 1 | . . 1 . Reactor . | . . . . Propulsion 9 | 2 1 3 3 Treads 7 | 2 1 3 1 Leg 2 | . . . 2 Wheel . | . . . . Hover . | . . . . Flight . | . . . . Utility 8 | 1 1 2 4 Device . | . . . . Storage 3 | 1 . . 2 Processor . | . . . . Hackware 1 | . . 1 . Protection 4 | . 1 1 2 Artifact . | . . . . Weapon 11 | 2 3 4 2 Energy Gun 5 | 1 2 1 1 Energy Cannon 2 | . . 2 . Ballistic Gun 4 | 1 1 1 1 Ballistic Cannon . | . . . . Launcher . | . . . . Special Weapon . | . . . . Impact Weapon . | . . . . Slashing Weapon . | . . . . Piercing Weapon . | . . . . Special Melee Weapon . | . . . . Unidentified Prototypes . | . . . . Corrupted Parts 2 | . . 2 . System Corruption 5 | . . 5 . Parts Lost 14 | . 1 . 13 Power 4 | . . . 4 Propulsion 3 | . . . 3 Utility 4 | . . . 4 Weapon 3 | . 1 . 2 Highest Loss Streak 9 | . 1 . 9 To Critical Strikes . | . . . . Average Backups 4 | 2 3 6 3 Power 1 | . 1 1 . Propulsion 2 | 1 1 2 1 Utility . | . . 1 1 Weapon . | . . . . Tool/Special . | . . . . Unused Backups 5 | . 3 1 1 Power 1 | . 1 . . Propulsion 2 | . 2 . . Utility 2 | . . 1 1 Weapon . | . . . . Tool/Special . | . . . . Average Slot Usage (%) 89 | . 84 96 85 Engine 13 | . 14 14 12 Core 3 | . . 7 3 Treads 22 | . 24 22 19 Storage 11 | . 14 11 8 Hackware 6 | . . 10 9 Protection 10 | . 6 11 14 Energy Gun 11 | . 13 10 8 Energy Cannon 2 | . . 3 3 Ballistic Gun 7 | . 9 5 5 Peak Build Rating 20 | 6 7 18 20 Average Rating 11 | 4 5 16 16 On Entrance 7 | . 6 7 17 Naked Turns . | . . . . Heaviest Build 27 | 14 14 24 27 Greatest Support 60 | 40 40 40 60 Greatest Overweight (x) 6 | . . 1 6 Average Overweight (x) . | . . . . Largest Inventory Capacity 10 | 8 8 8 10 Average Capacity 7 | 7 8 8 7 Most Carried 8 | 5 6 8 6 Average Carried 4 | 2 3 6 3 Final Capacity 8 | 8 8 8 5 Final Carried 7 | 4 4 7 1 Class Distribution -------------------- 53% | Hacker-Mutant 39% | Mutant 6% | Scavenger-Mutant Dominant Class ---------------- Mutant | -10/Materials Hacker-Mutant | -9/Materials Hacker-Mutant | -8/Materials Resources | -11 -10 -9 -8 ----------- Run | Yrd Mat Mat Mat Matter Collected 759 | 211 174 152 222 Remotely . | . . . . Salvage Created 1643 | . 561 661 421 Parts 100 | . 43 34 23 Haulers Intercepted 1 | . 1 . . Recyclers Shooed . | . . . . Parts Field Recycled . | . . . . Retrieved Matter . | . . . . Parts Self-Destructed . | . . . . Prevented . | . . . . Kills | -11 -10 -9 -8 ------- Run | Yrd Mat Mat Mat Combat Hostiles Destroyed 39 | . 16 12 11 Melee 1 | . . . 1 Guns 32 | . 15 10 7 Cannons 2 | . . 1 1 AOE 1 | . 1 . . Classes Destroyed 7 | . 5 2 . Worker 1 | . 1 . . Hauler 1 | . 1 . . Watcher 8 | . 1 4 3 Swarmer 17 | . 9 2 6 Grunt 15 | . 7 6 2 Duelist 1 | . . 1 . Sentry 6 | . . 3 3 Best Kill Streak 7 | . 4 5 7 Combat Bots Only 5 | . 3 5 5 Max Kills in Single Turn 2 | . 1 2 1 Gunslinging . | . . . . Exploded 1 | . 1 . . Melee 1 | . . . 1 Uniques/NPCs Destroyed . | . . . . Combat | -11 -10 -9 -8 -------- Run | Yrd Mat Mat Mat Hostile Shots Fired 349 | . 69 52 228 Missed 83 | . 20 22 41 Hits 266 | . 49 30 187 Projectile 266 | . 49 30 187 Critical Strikes 8 | . . 2 6 Damage Taken 2468 | . 345 279 1844 Core 733 | . 88 89 556 Absorbed by Shields . | . . . . Redirected to Shielding 8 | . 8 . . Ignored by Resistances 774 | . 113 116 545 Core Remaining (%) 80 | 100 64 77 . Volleys Fired 163 | . 57 38 68 Largest 2 | . 2 2 2 Hottest 116 | . 60 112 116 Shots Fired 257 | . 93 74 90 Gun 230 | . 93 63 74 Cannon 27 | . . 11 16 Launcher . | . . . . Special . | . . . . Kinetic 103 | . 36 24 43 Thermal 65 | . . 18 47 Explosive . | . . . . Electromagnetic 89 | . 57 32 . Robot Hit Streak 28 | . 12 28 7 Robot Miss Streak 4 | . 4 2 3 Penetration Max . | . . . . Secondary Targets 6 | . 3 2 1 Max Gunslinging Chain 1 | . 1 1 1 Shots Hit Robots 186 | . 62 63 61 Core Hits 87 | . 29 30 28 Critical Kills . | . . . . Critical Parts Destroyed . | . . . . Critical Strikes 8 | . . 5 3 Burn 6 | . . 3 3 Corrupt 2 | . . 2 . Melee Attacks . | . . . . Impact . | . . . . Slashing . | . . . . Piercing . | . . . . Sneak Attacks . | . . . . Combat Hostiles . | . . . . Follow-up Attacks . | . . . . Damage Inflicted 2812 | . 865 904 1043 Guns 2152 | . 751 606 795 Cannons 479 | . . 254 225 Explosions 158 | . 114 44 . Melee . | . . . . Ramming 23 | . . . 23 Kinetic 883 | . 242 177 464 Thermal 905 | . 114 235 556 Explosive . | . . . . Electromagnetic 1001 | . 509 492 . Impact . | . . . . Slashing . | . . . . Piercing . | . . . . Highest Corruption 5 | . 1 5 . Average Corruption 3 | . 1 4 . Corruption Purged . | . . . . Corruption Blocked . | . . . . Effects 16 | . 3 13 . Message Errors 2 | . 1 1 . Matter Fused 4 | . 1 3 . Heat Flow Errors 2 | . . 2 . Energy Discharges 2 | . . 2 . Parts Fused 1 | . 1 . . Data Loss (minor) 1 | . . 1 . Data Loss (major) 2 | . . 2 . Misfires 2 | . . 2 . Overload Shots . | . . . . Overflow Damage . | . . . . Projectiles . | . . . . Explosions . | . . . . Melee . | . . . . Knockbacks . | . . . . Impact . | . . . . Kinetic . | . . . . Secondary . | . . . . Self-Inflicted Damage 4 | . . . 4 Shots . | . . . . Rammed 8 | . . . 8 Targets Rammed 12 | . . . 12 Kicked 4 | . . . 4 Crushed . | . . . . Highest Temperature 581 | . 97 534 581 Average Temperature 179 | . 24 171 257 Received Heat Transfer 1041 | . 129 174 738 Effects 38 | . . 11 27 Shutdowns 16 | . . 5 11 Energy Bleed 5 | . . 2 3 Interference 6 | . . 2 4 Short Circuit 2 | . . 1 1 Damage (minor) 2 | . . 1 1 Damage (major) 4 | . . . 4 Damage (core) 3 | . . . 3 Siege Activations . | . . . . Martial Activations . | . . . . Shielding Activations . | . . . . Robots Disrupted 1 | . . 1 . Combat Hostiles 1 | . . 1 . Robots Corrupted 1 | . . 1 . Combat Hostiles 1 | . . 1 . Parts Fried 3 | . . 3 . Impact Corruptions . | . . . . Robots Melted 2 | . . . 2 Combat Hostiles 2 | . . . 2 Parts Melted 5 | . . 1 4 Heat Transferred 2507 | . 200 753 1554 Parts Sabotaged . | . . . . Parts Stolen . | . . . . Parts Stripped . | . . . . Power Chain Reactions 3 | . 2 1 . Alert | -11 -10 -9 -8 ------- Run | Yrd Mat Mat Mat Maximum Alert Level 1 | . . 1 . Low Security (%) 96 | 100 100 90 100 Level 1 3 | . . 9 . Level 2 . | . . . . Level 3 . | . . . . Level 4 . | . . . . Level 5 . | . . . . High Security . | . . . . Max Security . | . . . . Peak Influence 215 | . 168 215 119 Initial 34 | . . 34 25 Average 77 | . 75 115 41 Influence Increases 1060 | . 411 353 296 Destroy 0b10 Robot/C 780 | . 320 240 220 Destroy 0b10 Robot/NC 50 | . 15 20 15 Destroy Leader 178 | . 54 78 46 Disable Machine 18 | . 18 . . Destroy Structure 4 | . 4 . . Lose Combat Pursuer 30 | . . 15 15 Influence Decreases 1060 | . 316 375 369 Entered New Map 109 | . . 61 48 Time Decay 841 | . 306 314 221 Lost Part 110 | . 10 . 100 Squads Dispatched 5 | . 1 1 3 Investigation 2 | . 1 . 1 Extermination . | . . . . Reinforcement 2 | . . 1 1 Assault . | . . . . Garrison 1 | . . . 1 Intercept . | . . . . Searches Triggered . | . . . . Construction Impeded . | . . . . Haulers Reinforced . | . . . . Active Scanning Responses . | . . . . Cargo Convoy Interrupts . | . . . . Stealth | -11 -10 -9 -8 --------- Run | Yrd Mat Mat Mat Distress Signals 7 | . 3 . 4 Communications Jammed . | . . . . Distress Signals . | . . . . Times Spotted 71 | . 27 18 26 Peak Tracking Total 9 | . 4 6 9 Tactical Retreats 2 | . . 1 1 Traps | -11 -10 -9 -8 ------- Run | Yrd Mat Mat Mat Traps Triggered 4 | . 3 . 1 Indirectly . | . . . . Trap Hack Attempts . | . . . . Triggered . | . . . . Disarmed . | . . . . Reprogrammed . | . . . . Reused . | . . . . Traps Extracted . | . . . . Installed . | . . . . Triggered . | . . . . Machines | -11 -10 -9 -8 ---------- Run | Yrd Mat Mat Mat Machines Disabled 2 | . 2 . . Max in Single Turn 1 | . 1 . . Machines Repaired . | . . . . Machines Dismantled . | . . . . Machines Sabotaged . | . . . . Overloaded Fab Kills . | . . . . Hacking | -11 -10 -9 -8 --------- Run | Yrd Mat Mat Mat Machines Accessed 2 | . . 2 . Terminals 1 | . . 1 . Fabricators . | . . . . Repair Stations 1 | . . 1 . Recycling Units . | . . . . Scanalyzers . | . . . . Garrison Access . | . . . . Total Hacks 3 | . . 3 . Successful . | . . . . Failed 3 | . . 3 . Catastrophic . | . . . . Database Lockouts . | . . . . Manual 1 | . . 1 . Terminals 2 | . . 2 . Fabricators . | . . . . Repair Stations 1 | . . 1 . Recycling Units . | . . . . Scanalyzers . | . . . . Garrison Access . | . . . . Terminal Hacks . | . . . . Fabricator Hacks . | . . . . Repair Station Hacks . | . . . . Recycling Unit Hacks . | . . . . Scanalyzer . | . . . . Garrison Access Hacks . | . . . . Unauthorized Hacks . | . . . . Terminals . | . . . . Fabricators . | . . . . Repair Stations . | . . . . Recycling Units . | . . . . Scanalyzers . | . . . . Garrison Access . | . . . . Data Cores Recovered . | . . . . Used . | . . . . Hacking Detections 2 | . . 2 . Full Trace Events . | . . . . Feedback Events . | . . . . Feedback Blocked . | . . . . Robot Schematics Acquired . | . . . . Robots Built . | . . . . Authchips . | . . . . Time . | . . . . Total Robot Build Rating . | . . . . Part Schematics Acquired . | . . . . Parts Built . | . . . . Authchips . | . . . . Time . | . . . . Total Part Build Rating . | . . . . Parts Repaired . | . . . . Time . | . . . . Parts Recycled . | . . . . Recycled Matter . | . . . . Retrieved Matter . | . . . . Retrieved Components . | . . . . Parts Scanalyzed . | . . . . Part Schematics Acquired . | . . . . Parts Damaged . | . . . . Bothacking | -11 -10 -9 -8 ------------ Run | Yrd Mat Mat Mat Used RIF Installer . | . . . . Robots Hacked . | . . . . Non-combat . | . . . . Combat . | . . . . Robot Hacks Applied . | . . . . Relay Couplers Released . | . . . . Fabnet Peak Effective % . | . . . . Robots Rewired . | . . . . Allies Hacked . | . . . . Hacks Repelled . | . . . . Allies | -11 -10 -9 -8 -------- Run | Yrd Mat Mat Mat Total Allies . | . . . . Largest Group . | . . . . Highest-Rated Group . | . . . . Highest-Rated Ally . | . . . . Total Orders . | . . . . Ally Attacks . | . . . . Total Damage . | . . . . Kills . | . . . . Allies Corrupted . | . . . . Allies Melted . | . . . . Intel | -11 -10 -9 -8 ------- Run | Yrd Mat Mat Mat Active Infowar (turns) . | . . . . Robot Analysis Total . | . . . . Derelict Logs Recovered . | . . . . Drone Launches . | . . . . Drone Recoveries . | . . . . Exploration | -11 -10 -9 -8 ------------- Run | Yrd Mat Mat Mat Turns Passed 2015 | 81 721 703 510 Spaces Moved 943 | 51 349 353 190 Core 19 | 14 . . 5 Treads 924 | 37 349 353 185 Legs . | . . . . Wheels . | . . . . Hover . | . . . . Flight . | . . . . Fastest Speed 50 | 50 160 160 160 Average Speed 159 | 129 160 160 162 Slowest Speed 350 | 160 160 240 350 Overloaded Moves . | . . . . Propulsion Burnouts . | . . . . Robots Hopped . | . . . . Potential Cave-ins . | . . . . Cave-ins Triggered . | . . . . Exploration Rate (%) 33 | 4 65 42 21 Regions Visited 3 Branch Regions . Pre-discovered Areas . | . . . . Known Exits Taken . | . . . . Unknown Exits Taken 3 | 1 1 1 . Scrap Searched . | . . . . Spaces Dug . | . . . . Terrain Destroyed 4 | . 4 . . Melee . | . . . . Projectile . | . . . . AOE 4 | . 4 . . Terrain Rammed . | . . . . Walls Destroyed . | . . . . Machines Disabled . | . . . . Actions | -11 -10 -9 -8 --------- Run | Yrd Mat Mat Mat Total 1213 | 66 427 427 293 Wait . | . . . . Move 940 | 50 348 352 190 Hop . | . . . . Pick Up 37 | 10 9 14 4 Fast Attach 5 | . . 2 3 Attach 32 | 6 6 10 10 Detach . | . . . . Swap 1 | . 1 . . Drop 23 | . 6 11 6 Fire 163 | . 57 38 68 Melee . | . . . . Ram 6 | . . . 6 Kick 4 | . . . 4 Crush 2 | . . . 2 Escape Stasis . | . . . . Rewire . | . . . . Trap . | . . . . Miscellaneous . | . . . . Route ------- -11/Scrapyard -10/Materials (discovered 4 exits: *Mat x2 / [*Min] / [*Sub]) -9/Materials (discovered 2 exits: *Mat / [*Min]) -8/Materials (discovered 1 exit: [*Sto]) History --------- Turn | Location | Event 39 | -11/Scrapyard | Discovered new exit (range 15) 82 | -11/Scrapyard | Entered Materials 307 | -10/Materials | Build established: Mutant 325 | -10/Materials | Discovered new exit (range 11) 343 | -10/Materials | Discovered new exit (range 11) 575 | -10/Materials | Discovered new exit (range 4) 776 | -10/Materials | Discovered new exit (range 16) 803 | -10/Materials | Entered another Materials area 803 | -9/Materials | Evolved 2 slots: Power x1, Utility x1 1226 | -9/Materials | Discovered new exit (range 15) 1448 | -9/Materials | Discovered new exit (range 16) 1480 | -9/Materials | Build established: Hacker-Mutant 1506 | -9/Materials | Entered another Materials area 1506 | -8/Materials | Evolved 2 slots: Propulsion x1, Utility x1 1508 | -8/Materials | Discovered new exit (range 7) 1691 | -8/Materials | Core integrity fell below 50% 1739 | -8/Materials | Lost 3 parts (1p1n1u) 1961 | -8/Materials | Garrison activated, responded to threat 2007 | -8/Materials | Core integrity fell below 20% 2016 | -8/Materials | Destroyed by Y-45 Defender with Beam Rifle Last Messages --------------- R-06 Scavenger collects Lgt. Nuclear Core. Broken Hvy. Assault Rifle destroyed. Lgt. Armor Plating destroyed. Slammed into Y-45 Defender. K-01 Serf cleans the Pressure Siphon. Slammed into Y-45 Defender. Broken Ion Engine destroyed. Slammed into Y-45 Defender. Beam Rifle destroyed. Slammed into Y-45 Defender. Destabilizing: Core damaged (-5). K-01 Serf cleans the Pressure Siphon. Acquired 3 matter. Kicked Y-45 Defender out of the way. Acquired 4 matter. Sml. Storage Unit destroyed. Kicked Y-45 Defender out of the way. K-01 Serf cleans the Pressure Siphon. Kicked Y-45 Defender out of the way. Kicked Y-45 Defender. Map ----- +----------------------------------------------------+ | ?????????????????????????????????????????????????? | | ?????????????????????????????????????????????????? | | ?????????????????????????????????????????????????? | | ?????????????????????????????????????????????????? | | ?????????????????????????????????????????????????? | | ?????????????????????????????????????????????????? | | ?????????????????????????????????????????????????? | | ?????????????????????????????????????????????????? | | ?????????????????????????????????????????????##### | | ?????????????????????????????????????????????# | | ????????????????????????????###+########+##### | | ?????????????????????????? + | | ?????????????????????????? # | | ?????????????????????????? # | | ?????????????????????????????### ######### # ] | | ?????????????????????????????### #???????# ##### | | ?????????????????????????????? # #???????# # | | ???????????????????????????????+ #???????# #""" | | ???????????????????????????????# #########+#""" | | ???????????????????????????????# ## ! #""" | | ??????????????????????????????## ## """ # | | ??????????????????????????????# # """ #""" | | ???????????????????????######## % # """ #""" | | ???????????????????????# %%% % + #""" | | ???????????????????????# Y ## # """ # | | ???????????????????????#%@ ## # """ # | | ???????????????????????# ######## """ # ] | | ???????????????????????# #??????#! # | | ???????????????????????#gg #??????############## | | ?????????????????????? g Y ??????????????????? | | ????????????????????? u ?????????????????? | | ???????????????????? ????????????????? | | ???????????????????"" """" ???????????????? | | ???????????????????"" """" ###+##??????????????? | | ???????????????????"" """" #???????????????????? | | ??????????????????? ? #???????????????????? | | ??????????????????? ??? #???????????????????? | | ???????????????????"" ????" #???????????????????? | | ????????????????????"?????? #???????????????????? | | ??????????????????????????? #???????????????????? | | ???????????????????????????? ????????????????????? | | ?????????????????????????????????????????????????? | | ?????????????????????????????????????????????????? | | ?????????????????????????????????????????????????? | | ?????????????????????????????????????????????????? | | ?????????????????????????????????????????????????? | | ?????????????????????????????????????????????????? | | ?????????????????????????????????????????????????? | | ?????????????????????????????????????????????????? | | ?????????????????????????????????????????????????? | +----------------------------------------------------+ Best States ------------- Heat Dissipation 31 Energy Generation 19 Energy Capacity 275 Matter Stores 300 Matter Capacity 300 Sight Range 16 Terrain Scan Density 10 Armor Coverage 300 Resistance: KI 20 Resistance: TH 30 Resistance: EX 20 Resistance: EM 20 Resistance: I 20 Resistance: S 20 Resistance: P 20 Power Shielding 33 Evasion (%) 50 Recoil Reduction 3 Offensive Hacking 20 Item Schematics ----------------- None Robot Schematics ------------------ None Fabricated ------------ Nothing Repaired ---------- Nothing Alien Tech Used ----------------- None Achievements -------------- Fist Fight Power Corrupts Troublemaker Challenges ------------ None Game ------ Seed StorageVoltaicShovel Manual? 0 Play Time 00:26:00 Cumulative 1.0 hours Start 2025.07.19 @ 11:35:55 End 2025.07.19 @ 12:03:22 Sessions 1 Manual Loads 0 Difficulty Adventurer Special Mode None Game No. 3 Rogue 0 Adventurer 3 Explorer 0 Win Type - Total 0 Types 0/0/0/0/0/0/0/0/0/0 Lore% 0 Gallery% 4 Achievement% 3 Wizard Run 0 Options --------- Layout 1 ASCII 0 Keyboard 0 Movement Mouse Keybinds 0 Fullscreen 1 Font 24/Proggy Map View 50x35 Zoom Use 0% Tactical HUD 0 Map Filters NONE Filters NONE Steam 1 RUN: d421714d-55e6-4ecd-ad26-b0fc25665cef